bitfinex-derivatives/quotes_ETHF0:USTF0_20240930
["timestamp","ask_amount","ask_price","bid_price","bid_amount"]
[1727670726429,0.3853,2629.1,2629.0,0.38035]
[1727670727025,3.2078,2629.4,2629.2,0.38031]
[1727670727228,0.3769,2629.3,2629.2,0.38031]
[1727670730031,0.3952,2629.5,2629.2,2.37]
[1727670730222,0.3952,2629.5,2629.4,0.38029]
[1727670730742,0.3952,2629.5,2629.3,1.1453]
[1727670730743,3.603,2629.5,2629.3,0.3803]
[1727670731122,3.603,2629.5,2629.0,3.5153]
[1727670731428,3.603,2629.5,2629.0,3.1444]
[1727670731631,3.603,2629.5,2629.2,0.38031]
[1727670731826,3.603,2629.5,2629.0,3.1444]
[1727670732023,3.603,2629.5,2629.3,0.3803]
[1727670732227,0.3952,2629.5,2629.4,0.38029]
[1727670733037,0.3952,2629.5,2629.3,1.37418801]
[1727670733534,0.3952,2629.5,2629.4,0.38029]
[1727670734624,0.7394,2629.7,2629.3,0.3927]
[1727670734831,0.7394,2629.7,2629.5,0.38027]
[1727670735037,0.7394,2629.7,2629.4,0.7613]
[1727670735244,0.7394,2629.7,2629.4,0.77099]
[1727670735444,0.7394,2629.7,2629.4,0.38029]
[1727670735642,0.7394,2629.7,2629.5,0.38028]
[1727670736043,0.7394,2629.7,2629.3,0.99388801]
[1727670736646,0.7394,2629.7,2629.4,0.38028]
[1727670737150,0.7394,2629.7,2629.5,0.38027]
[1727670738155,0.3693,2629.7,2629.6,5.95806]
[1727670738346,1.1773,2630.3,2629.6,8.5085284]
[1727670738547,1.1773,2630.3,2629.8,2.37]
[1727670738752,1.1773,2630.3,2630.1,0.38019]
[1727670739141,1.1773,2630.3,2630.0,0.3802]
[1727670739448,1.1773,2630.3,2630.1,0.38018]
[1727670739648,1.1773,2630.3,2630.0,0.38019]
[1727670739852,1.1773,2630.3,2630.1,0.38018]
[1727670740050,1.1773,2630.3,2629.9,0.76851]
[1727670740239,1.1773,2630.3,2629.9,0.38021]
[1727670740438,1.1773,2630.3,2630.1,0.38018]
[1727670740842,1.1773,2630.3,2629.8,2.7583]
[1727670741039,1.1773,2630.3,2630.0,0.3802]
[1727670741355,1.1773,2630.3,2629.9,0.38021]
[1727670741653,1.1773,2630.3,2630.0,0.3802]
[1727670742443,1.1773,2630.3,2630.1,0.38019]
[1727670742643,1.1773,2630.3,2629.9,0.3802]
[1727670742847,1.1773,2630.3,2629.8,2.7583]
[1727670743048,1.1773,2630.3,2629.9,0.38022]
[1727670743451,1.1773,2630.3,2630.0,0.3802]
[1727670743757,1.1773,2630.3,2629.9,0.38021]
[1727670744558,3.2078,2630.1,2629.9,0.38021]
[1727670744744,3.2078,2630.1,2629.7,3.6126]
[1727670745147,3.2078,2630.1,2629.9,0.38021]
[1727670745644,3.2078,2630.1,2629.7,3.6126]
[1727670745845,3.2078,2630.1,2629.7,0.78504]
[1727670746045,3.2078,2630.1,2629.7,0.4048]
[1727670746247,3.2078,2630.1,2629.8,0.38022]
[1727670746541,1.1773,2630.3,2629.8,2.37]
[1727670746747,1.1773,2630.3,2629.9,0.38022]
[1727670746944,1.1773,2630.3,2630.1,0.38018]
[1727670748350,1.1773,2630.3,2629.9,0.3942]
[1727670748551,1.1773,2630.3,2630.1,0.38018]
[1727670749850,1.1773,2630.3,2629.9,0.3942]
[1727670750060,1.1773,2630.3,2630.1,0.38018]
[1727670751049,1.1773,2630.3,2630.2,0.38018]
[1727670751254,1.1773,2630.3,2630.0,2.37]
[1727670751763,1.1773,2630.3,2630.0,2.7502]
[1727670751961,1.1773,2630.3,2630.0,2.37]
[1727670752259,1.1773,2630.3,2629.9,0.3942]
[1727670752566,1.1773,2630.3,2630.0,0.38019]
[1727670752859,1.1773,2630.3,2630.0,0.3802]
[1727670753065,1.1773,2630.3,2630.1,0.38018]
[1727670753364,1.1773,2630.3,2630.1,0.38019]
[1727670754363,1.1773,2630.3,2630.0,1.4802]
[1727670754764,1.1773,2630.3,2630.0,1.1]
[1727670754963,1.1773,2630.3,2630.1,0.38018]
[1727670755663,1.1773,2630.3,2630.0,1.4802]
[1727670756054,1.1773,2630.3,2630.0,0.3802]
[1727670756258,1.1,2630.2,2629.9,0.38021]
[1727670756571,1.1,2630.0,2629.9,0.38021]
[1727670756762,4.3078,2630.0,2629.9,0.38022]
[1727670760865,8.1102,2630.0,2629.5,3.76760609]
[1727670761067,4.3078,2629.7,2629.5,0.38027]
[1727670761455,1.1,2629.6,2629.4,0.38029]
[1727670761659,0.7552,2629.5,2629.4,0.38029]
[1727670761958,1.147,2629.5,2629.4,0.38029]
[1727670762953,1.147,2629.5,2629.4,1.48029]
[1727670763156,1.062,2630.3,2629.4,1.1]
[1727670763157,3.2078,2629.8,2629.4,1.1]
[1727670763368,0.4003,2629.6,2629.5,0.38028]
[1727670764264,1.1,2630.0,2629.8,0.38023]
[1727670764467,0.4003,2629.9,2629.7,0.38024]
[1727670764662,0.7637,2629.8,2629.7,0.38024]
[1727670764858,1.8637,2629.8,2629.3,3.5866]
[1727670765066,1.8637,2629.8,2629.5,0.38027]
[1727670765470,1.8637,2629.8,2629.6,0.38026]
[1727670765767,1.8637,2629.8,2629.4,0.38028]
[1727670766265,0.7637,2629.8,2629.4,1.1]
[1727670766462,0.7637,2629.8,2629.7,0.38025]
[1727670768569,0.4003,2629.9,2629.8,0.38023]
[1727670768766,0.4003,2629.9,2629.8,1.48023]
[1727670769461,3.9929,2630.1,2630.0,0.3802]
[1727670771268,3.2078,2630.1,2630.0,0.3802]
[1727670773962,3.2078,2630.1,2630.0,0.779]
[1727670777069,3.9612,2630.4,2630.0,0.3988]
[1727670777373,3.9612,2630.4,2630.0,0.7989]
[1727670777673,3.9612,2630.4,2630.3,0.38016]
[1727670777865,3.9612,2630.4,2630.0,0.7989]
[1727670778061,3.9612,2630.4,2630.2,0.38017]
[1727670778375,3.9612,2630.4,2630.3,0.38016]
[1727670779471,3.9612,2630.4,2630.2,0.38016]
[1727670780569,6.3312,2630.4,2629.7,2.37]
[1727670780765,6.3312,2630.4,2629.9,0.38021]
[1727670780960,6.3312,2630.4,2630.0,0.38019]
[1727670781165,6.3312,2630.4,2629.9,0.38022]
[1727670781679,3.9612,2630.4,2630.1,0.38018]
[1727670781973,3.9612,2630.4,2629.7,2.37]
[1727670782377,3.9612,2630.4,2630.1,0.38019]
[1727670782764,3.9612,2630.4,2630.0,0.3802]
[1727670785075,3.9612,2630.4,2629.9,0.99298817]
[1727670785971,3.9612,2630.4,2630.2,0.38017]
[1727670786275,3.9612,2630.4,2629.9,0.99298817]
[1727670786476,3.9612,2630.4,2630.2,0.38017]
[1727670787880,3.9612,2630.4,2630.1,0.38019]
[1727670788677,2.37,2630.2,2629.9,0.99298817]
[1727670788972,3.2078,2630.0,2629.7,0.38024]
[1727670789281,0.8072,2629.9,2629.8,0.38023]
[1727670789475,0.8072,2629.9,2629.7,0.38024]
[1727670789677,0.8072,2629.9,2629.6,4.76057426]
[1727670789880,0.8072,2629.9,2629.7,0.38025]
[1727670790083,0.8072,2629.9,2629.6,3.76758609]
[1727670790779,3.2078,2629.7,2629.6,3.38733609]
[1727670790972,3.2078,2629.7,2629.4,0.99298817]
[1727670791277,0.3675,2629.6,2629.5,0.38028]
[1727670791577,0.3675,2629.6,2629.5,1.48028]
[1727670791877,0.3675,2629.6,2629.5,2.47326817]
[1727670792969,0.3675,2629.6,2629.5,3.90904625]
[1727670794273,0.3675,2629.6,2629.5,3.90913025]
[1727670794682,0.3675,2629.6,2629.5,2.47326817]
[1727670795384,0.3675,2629.6,2629.5,3.90916199]
[1727670795680,0.8072,2629.9,2629.8,0.38023]
[1727670795874,1.1982,2629.9,2629.8,0.38023]
[1727670797976,4.406,2629.9,2629.6,0.99298817]
[1727670798279,4.406,2629.9,2629.5,1.37325817]
[1727670798984,5.506,2629.9,2629.5,1.37325817]
[1727670799683,4.406,2629.9,2629.5,0.38027]
[1727670800979,4.406,2629.9,2629.3,4.20078817]
[1727670801181,4.406,2629.9,2629.2,4.23444936]
[1727670801182,3.2078,2629.6,2629.4,0.38029]
[1727670801375,0.7585,2629.5,2629.3,0.3803]
[1727670801577,1.1392,2629.5,2629.3,0.3803]
[1727670802082,1.1392,2629.5,2629.2,0.3679]
[1727670802379,1.1392,2629.5,2629.4,0.38029]
[1727670804675,1.1392,2629.5,2629.3,0.3803]
[1727670805078,1.1392,2629.5,2629.1,0.38032]
[1727670805274,3.2078,2629.2,2629.1,0.38033]
[1727670805478,3.2078,2629.2,2629.0,0.38034]
[1727670805780,0.8044,2629.1,2628.9,0.38036]
[1727670805975,0.3736,2629.0,2628.9,0.38036]
[1727670806173,0.3736,2629.0,2628.7,0.3742]
[1727670806372,0.3736,2629.0,2628.9,0.38036]
[1727670806575,3.5814,2629.0,2628.9,0.38036]
[1727670806777,3.5814,2629.0,2628.9,1.37334817]
[1727670806984,3.5814,2629.0,2628.9,0.38036]
[1727670810282,3.5814,2629.0,2628.8,0.38037]
[1727670810682,3.5814,2629.0,2628.7,0.38039]
[1727670811282,3.5814,2629.0,2628.6,0.3804]
[1727670811487,3.5814,2629.0,2628.7,0.38038]
[1727670811684,3.5814,2629.0,2628.8,0.38038]
[1727670812180,3.5814,2629.0,2628.4,1.38908817]
[1727670812376,3.5814,2629.0,2628.7,0.38038]
[1727670812582,3.5814,2629.0,2628.8,0.38038]
[1727670812788,3.5814,2629.0,2628.5,2.37]
[1727670812980,3.5814,2629.0,2628.9,0.38036]
[1727670813181,3.5814,2629.0,2628.8,0.38036]
[1727670813382,3.5814,2629.0,2628.5,2.37]
[1727670813582,3.5814,2629.0,2628.8,0.38036]
[1727670816087,3.5814,2629.0,2628.5,2.37]
[1727670816288,3.5814,2629.0,2628.9,0.38036]
[1727670817388,3.5814,2629.0,2628.8,0.38037]
[1727670818891,3.5814,2629.0,2628.9,0.38036]
[1727670819095,3.5814,2629.0,2628.5,2.37]
[1727670819290,3.5814,2629.0,2628.9,0.38036]
[1727670819885,3.5814,2629.0,2628.5,2.37]
[1727670820091,3.5814,2629.0,2628.8,0.38037]
[1727670820596,3.5814,2629.0,2628.9,0.38036]
[1727670822195,3.5814,2629.0,2628.7,1.1]
[1727670822500,3.5814,2629.0,2628.9,0.38036]
[1727670822689,3.5814,2629.0,2628.8,0.38037]
[1727670824097,3.5814,2629.0,2628.9,0.38036]
[1727670824592,3.5814,2629.0,2628.7,1.1]
[1727670825095,3.5814,2629.0,2628.8,0.38038]
[1727670826492,3.2078,2629.0,2628.9,1.1]
[1727670826794,3.2078,2629.0,2628.9,1.48036]
[1727670828393,3.2078,2629.0,2628.8,1.8389]
[1727670828589,3.5804,2629.0,2628.9,0.38036]
[1727670828799,3.9801,2629.0,2628.9,0.38036]
[1727670834311,0.7723,2629.0,2628.9,0.38036]
[1727670847312,0.7723,2629.0,2628.9,1.37334817]
[1727670849207,0.398,2629.1,2629.0,0.38035]
[1727670849410,1.1,2629.5,2629.0,0.38035]
[1727670849411,3.9735,2629.5,2629.0,6.71519244]
[1727670849723,0.3714,2629.4,2629.3,0.38031]
[1727670850020,0.10885288,2630.4,2629.3,0.38031]
[1727670850021,3.2078,2629.8,2629.7,0.38024]
[1727670850321,3.2078,2629.8,2629.6,0.99331452]
[1727670850628,0.3863,2629.7,2629.6,1.37357452]
[1727670851808,0.3863,2629.7,2629.6,1.80968471]
[1727670852123,0.3863,2629.7,2629.6,1.37313708]
[1727670853012,0.3863,2629.7,2629.6,2.80204364]
[1727670853223,0.3863,2629.7,2629.6,1.37313708]
[1727670853515,3.2078,2629.8,2629.7,0.38025]
[1727670853716,3.2078,2629.8,2629.7,3.25552708]
[1727670854518,3.2078,2629.8,2629.7,2.26265]
[1727670855222,3.2078,2629.8,2629.7,1.16265]
[1727670855425,3.2078,2629.8,2629.7,0.75725]
[1727670858613,3.2078,2629.8,2629.7,0.38025]
[1727670864227,0.3743,2629.9,2629.8,0.38023]
[1727670865315,0.3743,2629.9,2629.8,0.75863]
[1727670868526,0.3743,2629.9,2629.8,0.38023]
[1727670869323,0.3743,2629.9,2629.7,1.1]
[1727670869528,0.3743,2629.9,2629.8,0.38023]
[1727670871124,0.3743,2629.9,2629.7,1.1]
[1727670871321,0.3743,2629.9,2629.8,0.38023]
[1727670871630,0.3743,2629.9,2629.7,1.1]
[1727670871931,0.3743,2629.9,2629.8,0.38023]
[1727670873731,0.3743,2629.9,2629.8,0.77483]
[1727670875921,3.2078,2630.1,2630.0,0.3802]
[1727670876122,0.7836,2630.7,2630.1,0.95048]
[1727670876330,0.7836,2630.7,2630.6,1.48012]
[1727670876624,0.7836,2630.7,2630.6,1.1]
[1727670877328,0.7836,2630.7,2630.5,1.1]
[1727670878733,3.9914,2630.7,2630.5,1.1]
[1727670882129,3.9914,2630.7,2630.3,1.48016]
[1727670885842,3.9914,2630.7,2630.4,0.38014]
[1727670886132,3.9914,2630.7,2630.3,1.48015]
[1727670886438,3.9914,2630.7,2630.3,1.48016]
[1727670887241,3.9914,2630.7,2630.3,1.1]
[1727670887545,3.9914,2630.7,2630.3,1.48015]
[1727670889132,3.9914,2630.7,2630.3,1.1]
[1727670889333,1.1,2630.6,2630.2,0.38017]
[1727670889640,3.9914,2630.7,2629.8,3.2078]
[1727670889641,3.2078,2630.3,2629.8,3.2078]
[1727670889834,0.7744,2630.2,2629.9,1.1]
[1727670890033,1.1795,2630.2,2629.9,1.1]
[1727670890344,1.1795,2630.2,2629.9,1.48021]
[1727670891242,2.2795,2630.2,2629.8,3.2078]
[1727670891433,2.2795,2630.2,2629.9,0.38021]
[1727670891942,2.2795,2630.2,2629.8,3.58802]
[1727670892243,2.2795,2630.2,2629.9,0.38022]
[1727670892838,2.2795,2630.2,2629.8,3.2078]
[1727670893040,2.2795,2630.2,2630.0,0.3802]
[1727670893439,2.2795,2630.2,2629.9,0.38021]
[1727670893640,2.2795,2630.2,2630.0,0.3802]
[1727670894032,2.2795,2630.2,2629.8,3.2078]
[1727670894536,2.2795,2630.2,2629.9,0.38021]
[1727670894736,2.2795,2630.2,2630.0,0.3802]
[1727670895736,1.1795,2630.2,2630.0,0.3802]
[1727670896343,1.1795,2630.2,2629.9,1.1]
[1727670896546,1.1795,2630.2,2630.0,0.3802]
[1727670897255,1.1795,2630.2,2629.9,1.1]
[1727670897747,1.1795,2630.2,2630.1,0.38019]
[1727670899346,1.1795,2630.2,2629.9,1.1]
[1727670899347,3.2078,2630.3,2630.2,0.38018]
[1727670899744,7.0094,2630.3,2630.2,0.38018]
[1727670905446,3.2078,2630.3,2630.2,0.38018]
[1727670906148,3.2078,2630.3,2630.2,1.48018]
[1727670906548,3.2078,2630.3,2630.2,1.51458]
[1727670906946,3.2078,2630.3,2630.2,0.41458]
[1727670907247,3.9795,2630.3,2630.2,0.41458]
[1727670908851,3.2078,2630.3,2630.2,0.41458]
[1727670909358,3.2078,2630.3,2630.2,5.31618]
[1727670909545,3.2078,2630.8,2630.7,0.38009]
[1727670911351,3.2078,2630.8,2630.6,2.09100068]
[1727670911352,3.2078,2630.8,2630.6,0.99100068]
[1727670911555,3.2078,2630.8,2630.7,0.3801]
[1727670912051,3.2078,2630.8,2630.5,1.36780068]
[1727670912457,3.2078,2630.8,2630.7,0.3801]
[1727670915149,3.2078,2630.8,2630.5,1.36780068]
[1727670915354,3.2078,2630.8,2630.6,0.38011]
[1727670917461,3.2078,2630.8,2630.5,1.36780068]
[1727670917660,3.2078,2630.8,2630.7,0.3801]
[1727670919070,3.2078,2630.8,2630.5,1.36780068]
[1727670919373,3.2078,2630.8,2630.7,0.38009]
[1727670924371,3.2078,2630.8,2630.5,0.3768]
[1727670924566,1.1,2630.7,2630.3,0.99100068]
[1727670924766,1.1431,2631.0,2630.2,0.0344]
[1727670924767,4.3078,2630.4,2630.2,0.0344]
[1727670925073,0.3845,2630.3,2630.2,0.41458]
[1727670928674,0.3845,2630.3,2630.2,0.38018]
[1727670928979,3.5923,2630.3,2630.2,0.38018]
[1727670929381,0.3845,2630.3,2630.2,0.38018]
[1727670929583,3.5923,2630.3,2630.2,0.38018]
[1727670933282,0.3845,2630.3,2630.2,0.38018]
[1727670933478,3.5923,2630.3,2630.2,0.38018]
[1727670938678,3.5923,2630.3,2630.1,0.99100068]
[1727670938986,0.8097,2630.2,2630.1,0.38019]
[1727670939187,0.8097,2630.2,2630.0,0.3802]
[1727670939790,0.8097,2630.2,2629.8,1.37040068]
[1727670939989,3.2078,2629.9,2629.8,1.75063068]
[1727670940483,3.2078,2629.9,2629.8,1.37123068]
[1727670940690,3.2078,2629.9,2629.8,0.38023]
[1727670941385,3.2078,2629.9,2629.8,1.37123068]
[1727670941984,3.2078,2629.9,2629.8,2.47123068]
[1727670943689,3.2078,2629.9,2629.8,1.48023]
[1727670945481,3.2078,2629.9,2629.8,0.38023]
[1727670946182,4.3078,2629.9,2629.5,0.3923]
[1727670946483,1.1,2629.6,2629.4,0.38028]
[1727670946681,4.3078,2629.6,2629.4,0.38028]
[1727670947280,4.3078,2629.6,2629.1,3.38733609]
[1727670947481,1.1,2629.4,2628.9,1.1]
[1727670947782,1.1663,2629.3,2629.2,0.38032]
[1727670948187,1.1663,2629.3,2629.1,0.38032]
[1727670948387,1.1,2629.2,2629.1,0.38032]
[1727670950790,4.3078,2629.2,2629.1,0.38032]
[1727670952085,3.2078,2629.2,2629.1,0.38032]
[1727670953589,3.2078,2629.2,2629.1,0.41472]
[1727670962495,3.2078,2629.2,2629.1,1.22632]
[1727670963702,3.2078,2629.2,2629.1,0.41472]
[1727670963892,3.9768,2629.2,2629.1,0.41472]
[1727670969193,3.2078,2629.2,2629.1,0.41472]
[1727670969395,2.63700768,2629.2,2629.1,4.21792]
[1727670969708,2.63700768,2629.2,2629.1,5.31792]
[1727670969997,0.3756,2629.3,2629.2,0.38032]
[1727670970796,0.3756,2629.3,2629.2,1.16712]
[1727670972507,0.3756,2629.3,2629.2,0.77222]
[1727670977799,0.3756,2629.3,2629.2,0.38032]
[1727670982308,0.3756,2629.3,2629.2,1.37119075]
[1727670983013,0.3756,2629.3,2629.2,1.74359075]
[1727670983313,0.3756,2629.3,2629.2,3.18175101]
[1727670983612,0.3756,2629.3,2629.2,3.67718639]
[1727670984320,0.3756,2629.3,2629.2,3.67783137]
[1727670984720,0.3756,2629.3,2629.2,4.77783137]
[1727670985319,0.3756,2629.3,2629.2,3.29152524]
[1727670985514,3.5834,2629.3,2629.2,2.91912524]
[1727670985720,3.5834,2629.3,2629.2,3.31153884]
[1727670987220,3.5834,2629.3,2629.2,1.81912524]
[1727670987421,3.5834,2629.3,2629.2,3.31278136]
[1727670988321,3.5834,2629.3,2629.2,1.81912524]
[1727670988524,0.3756,2629.3,2629.2,1.81912524]
[1727670989214,0.3756,2629.3,2629.2,1.82162029]
[1727670991512,0.3756,2629.3,2629.2,2.92162029]
[1727670991709,0.3756,2629.3,2629.2,5.80422277]
[1727670991920,0.3756,2629.3,2629.2,7.79680824]
[1727670992116,0.3756,2629.3,2629.2,7.79662524]
[1727670992317,0.3756,2629.3,2629.2,5.80422277]
[1727670992521,0.3756,2629.3,2629.2,7.79657235]
[1727670992826,0.3756,2629.3,2629.2,5.80422277]
[1727670993020,0.3756,2629.3,2629.2,7.79651538]
[1727670994118,0.3756,2629.3,2629.2,7.79557409]
[1727670994421,0.3912,2629.6,2629.2,7.41525409]
[1727670994627,0.3912,2629.6,2629.5,0.99603656]
[1727670995320,0.3912,2629.6,2629.5,2.93484825]
[1727670999225,0.3912,2629.6,2629.5,2.93476707]
[1727671002026,0.3912,2629.6,2629.5,3.31504707]
[1727671002422,0.3912,2629.6,2629.5,2.93476707]
[1727671004027,0.3912,2629.6,2629.5,3.31475876]
[1727671004423,0.3912,2629.6,2629.5,2.93447876]
[1727671006324,0.103,2630.9,2629.8,0.38022]
[1727671006325,3.2078,2630.0,2629.8,0.38022]
[1727671006530,3.2078,2630.0,2629.9,3.31611517]
[1727671006724,3.2078,2630.0,2629.9,1.8231251]
[1727671007030,3.2078,2630.0,2629.9,1.4429051]
[1727671007235,3.2078,2630.0,2629.9,2.93499755]
[1727671007428,3.2078,2630.0,2629.9,2.93431058]
[1727671009032,3.2078,2630.0,2629.9,2.93393641]
[1727671009435,3.2078,2630.0,2629.8,3.28206071]
[1727671010234,3.2078,2630.0,2629.8,2.28783]
[1727671010436,3.2078,2630.0,2629.9,0.38022]
[1727671010733,0.78,2630.4,2629.9,0.38022]
[1727671010734,0.78,2630.4,2630.2,0.38016]
[1727671010932,0.3833,2630.3,2630.2,0.38016]
[1727671011231,0.3833,2630.3,2630.1,1.37387225]
[1727671012134,0.3833,2630.3,2630.2,0.38018]
[1727671014430,0.3833,2630.3,2630.2,1.48018]
[1727671015436,3.2078,2630.9,2630.3,0.38015]
[1727671015637,3.2078,2630.6,2630.3,2.64625]
[1727671015828,0.3913,2630.5,2630.3,2.64625]
[1727671016035,0.3913,2630.5,2630.3,2.2661]
[1727671017433,3.2078,2630.6,2630.3,2.2661]
[1727671018439,0.4022,2630.5,2630.3,2.64626]
[1727671019241,3.61,2630.5,2630.3,2.64626]
[1727671020337,3.61,2630.5,2630.3,0.78336]
[1727671020538,3.61,2630.5,2630.2,1.1]
[1727671020539,0.38,2630.4,2630.2,1.48017]
[1727671020739,0.7772,2630.4,2630.2,1.48017]
[1727671021143,0.7772,2630.4,2630.0,0.99369225]
[1727671021333,1.1,2630.2,2629.9,0.99369225]
[1727671021540,3.2078,2630.0,2629.8,2.09369225]
[1727671022138,3.9848,2630.0,2629.8,2.09369225]
[1727671022543,0.777,2630.0,2629.8,1.1]
[1727671022947,0.777,2630.0,2629.8,1.48023]
[1727671024045,0.777,2630.0,2629.8,1.1]
[1727671024344,0.777,2630.0,2629.8,1.48022]
[1727671024739,0.777,2630.0,2629.8,1.1]
[1727671024939,0.777,2630.0,2629.9,0.38022]
[1727671025539,0.777,2630.0,2629.8,1.1]
[1727671025741,0.777,2630.0,2629.8,1.48023]
[1727671026541,1.877,2630.0,2629.7,1.37393225]
[1727671026845,1.877,2630.0,2629.5,5.30149225]
[1727671027245,1.877,2630.0,2629.7,0.38025]
[1727671027549,1.877,2630.0,2629.5,5.30149225]
[1727671027754,1.877,2630.0,2629.6,0.38025]
[1727671027755,3.2078,2629.7,2629.6,0.38025]
[1727671028142,5.0848,2630.0,2629.5,2.09369225]
[1727671028342,5.0848,2630.0,2629.7,0.38024]
[1727671028541,5.0848,2630.0,2629.6,0.38026]
[1727671030849,5.0848,2630.0,2629.5,1.1]
[1727671030850,5.0848,2630.0,2629.7,0.38025]
[1727671033155,5.0848,2630.0,2629.5,1.1]
[1727671033351,5.0848,2630.0,2629.8,0.38022]
[1727671035952,5.0848,2630.0,2629.9,0.38022]
[1727671036850,0.777,2630.0,2629.9,0.38022]
[1727671039772,3.9848,2630.0,2629.7,0.99369225]
[1727671039957,3.9848,2630.0,2629.9,0.38022]
[1727671040155,3.9848,2630.0,2629.8,0.38023]
[1727671040657,3.9848,2630.0,2629.7,1.37393225]
[1727671040658,1.1,2629.9,2629.7,1.37393225]
[1727671040861,1.1,2629.9,2629.6,1.49209245]
[1727671040862,1.1,2629.9,2629.8,0.38023]
[1727671041662,1.1,2629.9,2629.7,0.38024]
[1727671043055,4.3078,2629.9,2629.6,0.99369225]
[1727671043365,4.3078,2629.9,2629.7,0.38024]
[1727671043962,4.3078,2629.9,2629.8,0.38023]
[1727671044159,3.2078,2629.9,2629.8,0.38023]
[1727671045960,3.2078,2629.9,2629.7,0.38024]
[1727671048856,3.2078,2629.9,2629.8,0.38023]
[1727671049069,7.0102,2629.9,2629.8,0.38023]
[1727671049863,3.2078,2629.9,2629.8,0.38023]
[1727671054969,4.3078,2629.9,2629.6,0.99369225]
[1727671055264,0.3889,2629.8,2629.6,0.38026]
[1727671056069,1.1,2629.7,2629.6,0.38026]
[1727671056467,1.1,2629.7,2629.4,0.99369225]
[1727671056771,3.2078,2629.5,2629.4,1.37397225]
[1727671056958,3.2078,2629.5,2629.4,0.38028]
[1727671057163,3.5967,2629.5,2629.4,0.38028]
[1727671057364,4.6967,2629.5,2629.4,0.38028]
[1727671057773,3.5967,2629.5,2629.4,0.38028]
[1727671061071,3.5967,2629.5,2629.4,1.37397225]
[1727671061377,3.5967,2629.5,2629.4,0.38028]
[1727671062166,3.5967,2629.5,2629.4,1.37397225]
[1727671064967,3.5967,2629.5,2629.4,0.99369225]
[1727671065172,3.5967,2629.5,2629.4,2.81693682]
[1727671066774,3.5967,2629.5,2629.4,2.81721449]
[1727671067474,3.5967,2629.5,2629.4,2.81742242]
[1727671068475,3.5967,2629.5,2629.4,3.31582262]
[1727671071779,3.5967,2629.5,2629.4,3.31608858]
[1727671072178,0.3889,2629.5,2629.4,3.31608858]
[1727671074280,0.4057,2629.6,2629.4,2.93579858]
[1727671074477,0.4057,2629.6,2629.5,2.22938613]
[1727671074670,0.7798,2629.6,2629.5,2.22938613]
[1727671075191,0.3741,2629.6,2629.5,2.22938613]
[1727671075481,0.3741,2629.6,2629.5,3.72147858]
[1727671075679,3.2078,2629.7,2629.6,0.38026]
[1727671075980,3.2078,2629.7,2629.6,1.37605546]
[1727671076185,3.2078,2629.7,2629.6,3.3159061]
[1727671076880,3.2078,2629.7,2629.6,3.31582438]
[1727671077586,0.3802,2629.8,2629.7,0.38025]
[1727671077786,0.3802,2629.8,2629.7,1.3758977]
[1727671081686,3.2078,2629.9,2629.8,0.38023]
[1727671081900,3.2078,2630.4,2630.2,0.38017]
[1727671082093,0.3745,2630.3,2630.2,0.38017]
[1727671082988,3.2078,2630.4,2630.3,0.38016]
[1727671083180,3.5823,2630.4,2630.3,1.3750983]
[1727671083587,3.5823,2630.4,2630.3,0.38016]
[1727671083788,3.5823,2630.4,2630.3,1.3750983]
[1727671084678,3.5823,2630.4,2630.3,0.9949383]
[1727671084883,3.5823,2630.4,2630.3,1.3750983]
[1727671085481,3.5823,2630.4,2630.3,0.38016]
[1727671087486,3.5823,2630.4,2630.2,1.3751083]
[1727671088989,3.5823,2630.4,2630.2,0.38017]
[1727671095292,0.3745,2630.4,2630.2,0.38017]
[1727671095694,0.3745,2630.4,2630.0,2.4796383]
[1727671095892,0.3745,2630.4,2630.2,0.38016]
[1727671096901,0.3745,2630.4,2630.0,2.4796383]
[1727671097096,0.3745,2630.4,2630.3,0.38016]
[1727671097691,0.3745,2630.4,2630.2,0.38017]
[1727671098804,0.3745,2630.4,2630.0,2.4796383]
[1727671098998,0.3745,2630.4,2630.3,0.38016]
[1727671107808,4.0044,2630.6,2630.5,0.38013]
[1727671111908,3.2078,2630.6,2630.5,0.38013]
[1727671112209,3.2078,2630.6,2630.4,1.48014]
[1727671112412,3.2078,2630.6,2630.4,0.38014]
[1727671112413,0.7825,2630.5,2630.4,0.38014]
[1727671113409,0.7825,2630.5,2630.4,0.38015]
[1727671114214,0.7825,2630.5,2630.2,2.5027383]
[1727671114215,0.7825,2630.5,2630.3,0.38015]
[1727671115112,0.7825,2630.5,2630.2,2.5027383]
[1727671115305,0.7825,2630.5,2630.2,0.9949383]
[1727671115306,3.2078,2630.4,2630.2,0.9949383]
[1727671115513,0.3869,2630.3,2630.1,0.9949383]
[1727671115719,0.3869,2630.3,2630.0,1.3822383]
[1727671115918,0.3939,2630.2,2630.0,1.3822383]
[1727671116416,0.3939,2630.2,2630.1,0.38019]
[1727671117014,0.3939,2630.2,2630.0,1.3822383]
[1727671117211,0.3939,2630.2,2630.1,0.9949383]
[1727671117619,1.4939,2630.2,2630.0,0.9949383]
[1727671117918,4.3078,2630.1,2629.9,0.9949383]
[1727671118117,4.3078,2630.1,2629.8,1.3751683]
[1727671118312,4.3078,2630.1,2629.9,0.9949383]
[1727671118512,3.2078,2630.1,2629.9,0.9949383]
[1727671119027,3.2078,2630.1,2630.0,0.3802]
[1727671119322,3.2078,2630.1,2629.9,0.9949383]
[1727671119519,3.2078,2630.1,2630.0,0.3802]
[1727671120618,3.2078,2630.1,2629.9,0.9949383]